fUSD/lending_fUSD_20240423
["ID","MTS","AMOUNT","RATE_DAILY","PERIOD"]
[323247238,1713843046088,-500.0,0.00012591,2]
[323247239,1713843046098,-598.27414191,0.00012591,2]
[323247240,1713843046107,-500.0,0.00012591,2]
[323247241,1713843046116,-500.0,0.00012591,2]
[323247242,1713843046125,-500.0,0.00012591,2]
[323247243,1713843046135,-601.34,0.00012591,2]
[323247244,1713843046144,-545.10974773,0.00012591,2]
[323247245,1713843046155,-1007.63,0.00012591,2]
[323247246,1713843046164,-628.2870833,0.00012591,2]
[323247247,1713843046174,-504.09045611,0.00012591,2]
[323247248,1713843046183,-520.71,0.00012591,2]
[323247249,1713843046194,-508.86181484,0.00012591,2]
[323247250,1713843046203,-503.15568696,0.00012591,2]
[323247251,1713843046213,-502.90149499,0.00012591,2]
[323247252,1713843046223,-500.0,0.00012591,2]
[323247253,1713843046232,-500.0,0.00012591,2]
[323247254,1713843046241,-503.29637886,0.00012591,2]
[323247255,1713843046250,-153.77678029,0.00012591,2]
[323247256,1713843046260,-500.0,0.00012591,2]
[323247257,1713843046269,-1151.55,0.00012591,2]
[323247258,1713843046278,-500.0,0.00012591,2]
[323247259,1713843046287,-500.0,0.00012591,2]
[323247260,1713843046297,-1040.41,0.00012591,2]
[323247261,1713843046306,-500.0,0.00012591,2]
[323247262,1713843046315,-592.51190779,0.00012591,2]
[323247264,1713843046324,-500.0,0.00012591,2]
[323247266,1713843046333,-310.50238358,0.00012591,2]
[323247267,1713843046343,-500.0,0.00012591,2]
[323247268,1713843046352,-769.61,0.00012591,2]
[323247269,1713843046361,-500.0,0.00012591,2]
[323247270,1713843046370,-517.63314083,0.00012591,2]
[323247271,1713843046380,-4106.77,0.00012591,2]
[323247272,1713843046389,-500.0,0.00012591,2]
[323247273,1713843046398,-503.22018942,0.00012591,2]
[323247274,1713843046409,-504.74315736,0.00012591,2]
[323247275,1713843046419,-500.0,0.00012591,2]
[323247276,1713843046428,-500.0,0.00012591,2]
[323247277,1713843046437,-504.32797579,0.00012591,2]
[323247278,1713843046446,-500.0,0.00012591,2]
[323247279,1713843046455,-903.62,0.00012591,2]
[323247280,1713843046465,-500.0,0.00012591,2]
[323247281,1713843046474,-501.22761208,0.00012591,2]
[323247282,1713843046483,-500.0,0.00012591,2]
[323247283,1713843046492,-566.49306837,0.00012591,2]
[323247284,1713843046501,-500.0,0.00012591,2]
[323247285,1713843046510,-500.0,0.00012591,2]
[323247286,1713843046520,-500.0,0.00012591,2]
[323247287,1713843046529,-500.0,0.00012591,2]
[323247288,1713843046539,-500.0,0.00012591,2]
[323247289,1713843046548,-500.0,0.00012591,2]
[323247290,1713843046558,-500.59627512,0.00012591,2]
[323247291,1713843046569,-794.72,0.00012591,2]
[323247292,1713843046578,-500.0,0.00012591,2]
[323247293,1713843046587,-500.0,0.00012591,2]
[323247294,1713843046596,-507.19112847,0.00012591,2]
[323247295,1713843046606,-500.0,0.00012591,2]
[323247296,1713843046615,-500.0,0.00012591,2]
[323247297,1713843046625,-2447.22,0.00012591,2]
[323247298,1713843046634,-500.0,0.00012591,2]
[323247299,1713843046644,-503.11527027,0.00012591,2]
[323247300,1713843046656,-508.87971508,0.00012591,2]
[323247301,1713843046666,-500.0,0.00012591,2]
[323247302,1713843046677,-1554.3,0.00012591,2]
[323247303,1713843046689,-500.0,0.00012591,2]
[323247304,1713843046698,-503.71117768,0.00012591,2]
[323247305,1713843046708,-500.0,0.00012591,2]
[323247306,1713843046717,-500.0,0.00012591,2]
[323247307,1713843046726,-500.0,0.00012591,2]
[323247308,1713843046734,-500.0,0.00012591,2]
[323247309,1713843046745,-580.02,0.00012591,2]
[323247310,1713843046754,-500.0,0.00012591,2]
[323247311,1713843046765,-500.0,0.00012591,2]
[323247312,1713843046774,-1162.5,0.00012591,2]
[323247313,1713843046784,-503.09258026,0.00012591,2]
[323247314,1713843046793,-500.89353673,0.00012591,2]
[323247315,1713843046803,-502.32521056,0.00012591,2]
[323247316,1713843046818,-1995.37,0.00012591,2]
[323247317,1713843046828,-501.84811705,0.00012591,2]
[323247318,1713843046837,-500.0,0.00012591,2]
[323247319,1713843046846,-500.0,0.00012591,2]
[323247320,1713843046858,-500.0,0.00012591,2]
[323247321,1713843046868,-500.0,0.00012591,2]
[323247322,1713843046878,-656.71,0.00012591,2]
[323247323,1713843046887,-500.0,0.00012591,2]
[323247324,1713843046897,-500.0,0.00012591,2]
[323247325,1713843046908,-500.0,0.00012591,2]
[323247326,1713843046917,-804.03,0.00012591,2]
[323247327,1713843046927,-500.0,0.00012591,2]
[323247328,1713843046937,-500.0,0.00012591,2]
[323247329,1713843046946,-500.0,0.00012591,2]
[323247330,1713843046956,-500.0,0.00012591,2]
[323247331,1713843046967,-500.0,0.00012591,2]
[323247332,1713843046977,-500.0,0.00012591,2]
[323247333,1713843046986,-500.0,0.00012591,2]
[323247334,1713843046995,-500.0,0.00012591,2]
[323247335,1713843047004,-503.04229702,0.00012591,2]
[323247336,1713843047014,-693.9,0.00012591,2]
[323247337,1713843047023,-500.24864087,0.00012591,2]
[323247338,1713843047032,-500.0,0.00012591,2]
[323247339,1713843047040,-500.0,0.00012591,2]
[323247340,1713843047050,-500.0,0.00012591,2]
[323247341,1713843047059,-500.0,0.00012591,2]
[323247342,1713843047069,-501.31965667,0.00012591,2]
[323247343,1713843047078,-500.0,0.00012591,2]
[323247344,1713843047088,-500.0,0.00012591,2]
[323247345,1713843047098,-627.09437738,0.00012591,2]
[323247346,1713843047108,-500.0,0.00012591,2]
[323247347,1713843047119,-500.0,0.00012591,2]
[323247348,1713843047128,-500.0,0.00012591,2]
[323247349,1713843047138,-500.0,0.00012591,2]
[323247350,1713843047147,-500.0,0.00012591,2]
[323247351,1713843047158,-500.0,0.00012591,2]
[323247352,1713843047167,-503.937246,0.00012591,2]
[323247353,1713843047177,-500.0,0.00012591,2]
[323247354,1713843047186,-521.39502716,0.00012591,2]
[323247355,1713843047197,-500.0,0.00012591,2]
[323247356,1713843047207,-500.0,0.00012591,2]
[323247357,1713843047216,-500.0,0.00012591,2]
[323247358,1713843047225,-503.15209367,0.00012591,2]
[323247359,1713843047235,-210.33279479,0.00012591,2]
[323247360,1713843047245,-500.0,0.00012591,2]
[323247361,1713843047254,-643.93,0.00012591,2]
[323247362,1713843047263,-500.0,0.00012591,2]
[323247363,1713843047274,-559.92045291,0.00012591,2]
[323247364,1713843047283,-504.79828916,0.00012591,2]
[323247365,1713843047294,-504.2734766,0.00012591,2]
[323247366,1713843047303,-500.0,0.00012591,2]
[323247367,1713843047312,-566.43089963,0.00012591,2]
[323247368,1713843047324,-500.0,0.00012591,2]
[323247369,1713843047334,-500.0,0.00012591,2]
[323247370,1713843047345,-500.25705789,0.00012591,2]
[323247371,1713843047355,-505.14062237,0.00012591,2]
[323247372,1713843047365,-500.0,0.00012591,2]
[323247373,1713843047374,-502.92020042,0.00012591,2]
[323247374,1713843047383,-500.0,0.00012591,2]
[323247375,1713843047392,-534.27411787,0.00012591,2]
[323247376,1713843047403,-543.80897138,0.00012591,2]
[323247377,1713843047412,-501.67477632,0.00012591,2]
[323247378,1713843047421,-500.0,0.00012591,2]
[323247379,1713843047430,-543.34229863,0.00012591,2]
[323247380,1713843047440,-826.38,0.00012591,2]
[323247381,1713843047450,-504.86506253,0.00012591,2]
[323247382,1713843047459,-500.0,0.00012591,2]
[323247383,1713843047469,-500.0,0.00012591,2]
[323247384,1713843047478,-500.0,0.00012591,2]
[323247385,1713843047488,-537.96745857,0.00012591,2]
[323247386,1713843047498,-601.96530128,0.00012591,2]
[323247387,1713843047508,-500.0,0.00012591,2]
[323247388,1713843047517,-500.0,0.00012591,2]
[323247389,1713843047526,-505.29198428,0.00012591,2]
[323247390,1713843047536,-571.78060307,0.00012591,2]
[323247391,1713843047545,-500.0,0.00012591,2]
[323247392,1713843047555,-632.88,0.00012591,2]
[323247393,1713843047565,-500.0,0.00012591,2]
[323247394,1713843047575,-504.78203716,0.00012591,2]
[323247395,1713843047584,-546.47666551,0.00012591,2]
[323247396,1713843047594,-500.0,0.00012591,2]
[323247397,1713843047602,-500.0,0.00012591,2]
[323247398,1713843047612,-501.24478774,0.00012591,2]
[323247399,1713843047621,-500.0,0.00012591,2]
[323247400,1713843047630,-537.17927157,0.00012591,2]
[323247401,1713843047641,-500.0,0.00012591,2]
[323247402,1713843047650,-500.0,0.00012591,2]
[323247403,1713843047661,-510.61963911,0.00012591,2]
[323247404,1713843047672,-500.0,0.00012591,2]
[323247405,1713843047682,-500.0,0.00012591,2]
[323247406,1713843047691,-500.0,0.00012591,2]
[323247407,1713843047700,-634.39,0.00012591,2]
[323247408,1713843047710,-500.0,0.00012591,2]
[323247409,1713843047719,-524.9876087,0.00012591,2]
[323247410,1713843047729,-500.0,0.00012591,2]
[323247411,1713843047738,-515.8,0.00012591,2]
[323247412,1713843047747,-500.0,0.00012591,2]
[323247413,1713843047757,-509.12015384,0.00012591,2]
[323247414,1713843047766,-500.0,0.00012591,2]
[323247415,1713843047775,-523.53731835,0.00012591,2]
[323247416,1713843047785,-501.91208528,0.00012591,2]
[323247417,1713843047794,-323.87686339,0.00012591,2]
[323247418,1713843047804,-972.07,0.00012591,2]
[323247419,1713843047815,-508.45835177,0.00012591,2]
[323247420,1713843047827,-505.05900578,0.00012591,2]
[323247421,1713843047837,-500.0,0.00012591,2]
[323247422,1713843047846,-501.97452066,0.00012591,2]
[323247423,1713843047856,-606.08724526,0.00012591,2]
[323247424,1713843047866,-505.79080402,0.00012591,2]
[323247425,1713843047875,-500.0,0.00012591,2]
[323247426,1713843047884,-506.76397668,0.00012591,2]
[323247427,1713843047895,-500.0,0.00012591,2]
[323247428,1713843047905,-500.0,0.00012591,2]
[323247429,1713843047914,-523.54178647,0.00012591,2]
[323247430,1713843047924,-500.0,0.00012591,2]
[323247431,1713843047934,-518.67544034,0.00012591,2]
[323247432,1713843047945,-950.97,0.00012591,2]
[323247433,1713843047954,-500.0,0.00012591,2]
[323247434,1713843047963,-500.0,0.00012591,2]
[323247435,1713843047972,-500.0,0.00012591,2]
[323247436,1713843047982,-500.0,0.00012591,2]
[323247437,1713843047991,-500.0,0.00012591,2]
[323247438,1713843048001,-500.0,0.00012591,2]
[323247439,1713843048010,-507.73279894,0.00012591,2]
[323247440,1713843048019,-500.0,0.00012591,2]
[323247441,1713843048028,-500.0,0.00012591,2]
[323247442,1713843048038,-504.03227676,0.00012591,2]
[323247443,1713843048048,-505.98859628,0.00012591,2]
[323247444,1713843048058,-502.03235351,0.00012591,2]
[323247445,1713843048069,-528.69715051,0.00012591,2]
[323247446,1713843048079,-500.0,0.00012591,2]
[323247447,1713843048088,-500.0,0.00012591,2]
[323247448,1713843048097,-504.27461793,0.00012591,2]
[323247449,1713843048106,-500.0,0.00012591,2]
[323247450,1713843048116,-535.85767665,0.00012591,2]
[323247451,1713843048126,-1177.41,0.00012591,2]
[323247452,1713843048136,-500.0,0.00012591,2]
[323247453,1713843048145,-510.41862516,0.00012591,2]
[323247454,1713843048158,-511.4312231,0.00012591,2]
[323247455,1713843048168,-500.0,0.00012591,2]
[323247456,1713843048178,-500.0,0.00012591,2]
[323247457,1713843048189,-500.0,0.00012591,2]
[323247458,1713843048199,-500.0,0.00012591,2]
[323247459,1713843048209,-500.0,0.00012591,2]
[323247460,1713843048219,-1655.37,0.00012591,2]
[323247461,1713843048230,-500.0,0.00012591,2]
[323247462,1713843048239,-512.86676649,0.00012591,2]
[323247463,1713843048248,-480.737481,0.00012591,2]
[323247464,1713843048259,-500.0,0.00012591,2]
[323247465,1713843048268,-500.0,0.00012591,2]
[323247466,1713843048277,-500.0,0.00012591,2]
[323247467,1713843048286,-504.51183106,0.00012591,2]
[323247468,1713843048295,-500.0,0.00012591,2]
[323247469,1713843048305,-500.0,0.00012591,2]
[323247470,1713843048315,-507.67672787,0.00012591,2]
[323247471,1713843048325,-1182.83,0.00012591,2]
[323247472,1713843048336,-500.0,0.00012591,2]
[323247473,1713843048347,-500.0,0.00012591,2]
[323247474,1713843048356,-500.0,0.00012591,2]
[323247475,1713843048365,-2783.12,0.00012591,2]
[323247476,1713843048375,-3989.84,0.00012591,2]
[323247477,1713843048384,-500.0,0.00012591,2]
[323247478,1713843048582,-507.46479604,0.00012591,2]
[323247479,1713843048594,-500.0,0.00012591,2]
[323247480,1713843048605,-500.0,0.00012591,2]
[323247481,1713843048616,-729.01,0.00012591,2]
[323247482,1713843048626,-591.67,0.00012591,2]
[323247483,1713843048636,-500.0,0.00012591,2]
[323247484,1713843048648,-584.44,0.00012591,2]
[323247485,1713843048659,-302.66583645,0.00012591,2]
[323247486,1713843048670,-500.0,0.00012591,2]
[323247487,1713843048681,-500.0,0.00012591,2]
[323247488,1713843048690,-11862.83,0.00012591,2]
[323247489,1713843048700,-703.24,0.00012591,2]
[323247490,1713843048710,-500.0,0.00012591,2]
[323247491,1713843048720,-1465.77,0.00012591,2]
[323247492,1713843048730,-500.0,0.00012591,2]
[323247493,1713843048740,-500.0,0.00012591,2]
[323247494,1713843048749,-500.0,0.00012591,2]
[323247495,1713843048759,-500.0,0.00012591,2]
[323247496,1713843048767,-2018.45,0.00012591,2]
[323247497,1713843048776,-500.0,0.00012591,2]
[323247498,1713843048786,-3984.69,0.00012591,2]
[323247499,1713843048794,-1171.81,0.00012591,2]
[323247500,1713843048804,-500.0,0.00012591,2]
[323247501,1713843048813,-500.0,0.00012591,2]
[323247502,1713843048826,-500.0,0.00012591,2]
[323247503,1713843048835,-500.0,0.00012591,2]
[323247504,1713843048845,-1058.05,0.00012591,2]
[323247505,1713843048855,-500.0,0.00012591,2]
[323247506,1713843048866,-500.0,0.00012591,2]
[323247507,1713843048875,-507.738404,0.00012591,2]
[323247508,1713843048884,-500.0,0.00012591,2]
[323247509,1713843048895,-568.16410982,0.00012591,2]
[323247510,1713843048905,-500.0,0.00012591,2]
[323247511,1713843048914,-500.0,0.00012591,2]
[323247512,1713843048923,-797.67,0.00012591,2]
[323247513,1713843048932,-500.0,0.00012591,2]
[323247514,1713843048941,-503.5306318,0.00012591,2]
[323247515,1713843048951,-508.07792112,0.00012591,2]
[323247516,1713843048960,-500.0,0.00012591,2]
[323247517,1713843048970,-524.483607,0.00012591,2]
[323247518,1713843048980,-500.0,0.00012591,2]
[323247519,1713843048990,-500.0,0.00012591,2]
[323247520,1713843048999,-500.0,0.00012591,2]
[323247521,1713843049010,-500.0,0.00012591,2]
[323247522,1713843049019,-500.0,0.00012591,2]
[323247523,1713843049028,-504.98513298,0.00012591,2]
[323247524,1713843049037,-700.4,0.00012591,2]
[323247525,1713843049046,-505.82154694,0.00012591,2]
[323247526,1713843049055,-705.81,0.00012591,2]
[323247527,1713843049065,-256.79674205,0.00012591,2]
[323247528,1713843049074,-854.18,0.00012591,2]
[323247529,1713843049083,-518.94,0.00012591,2]
[323247530,1713843049092,-500.0,0.00012591,2]
[323247531,1713843049101,-504.87088249,0.00012591,2]
[323247532,1713843049110,-502.83709741,0.00012591,2]
[323247533,1713843049119,-571.12,0.00012591,2]
[323247534,1713843049128,-500.0,0.00012591,2]
[323247535,1713843049137,-1191.23,0.00012591,2]
[323247536,1713843049146,-500.0,0.00012591,2]
[323247537,1713843049158,-559.3,0.00012591,2]
[323247538,1713843049167,-506.33104499,0.00012591,2]
[323247539,1713843049176,-504.18946924,0.00012591,2]
[323247540,1713843049185,-500.0,0.00012591,2]
[323247541,1713843049195,-500.0,0.00012591,2]
[323247542,1713843049204,-501.62361845,0.00012591,2]
[323247543,1713843049213,-209.90486825,0.00012591,2]
[323247544,1713843049222,-179.98267986,0.00012591,2]
[323247545,1713843049231,-346.95221195,0.00012591,2]
[323247546,1713843049240,-500.0,0.00012591,2]
[323247547,1713843049249,-500.0,0.00012591,2]
[323247548,1713843049258,-500.0,0.00012591,2]
[323247549,1713843049267,-503.29993229,0.00012591,2]
[323247550,1713843049277,-500.0,0.00012591,2]
[323247551,1713843049286,-500.0,0.00012591,2]
[323247552,1713843049295,-441.36525942,0.00012591,2]
[323247553,1713843049304,-500.0,0.00012591,2]
[323247554,1713843049314,-1406.93,0.00012591,2]
[323247555,1713843049322,-500.0,0.00012591,2]
[323247556,1713843049332,-503.89026316,0.00012591,2]
[323247557,1713843049343,-1185.68,0.00012591,2]
[323247558,1713843049352,-502.764808,0.00012591,2]
[323247559,1713843049361,-500.0,0.00012591,2]
[323247560,1713843049371,-619.40598089,0.00012591,2]
[323247561,1713843049381,-507.18947999,0.00012591,2]
[323247562,1713843049391,-502.1740225,0.00012591,2]
[323247563,1713843049401,-500.0,0.00012591,2]
[323247564,1713843049410,-500.0,0.00012591,2]
[323247565,1713843049419,-500.0,0.00012591,2]
[323247566,1713843049429,-500.0,0.00012591,2]
[323247567,1713843049438,-534.88533833,0.00012591,2]
[323247568,1713843049447,-500.0,0.00012591,2]
[323247569,1713843049456,-500.0,0.00012591,2]
[323247570,1713843049466,-500.0,0.00012591,2]
[323247571,1713843049475,-500.0,0.00012591,2]
[323247572,1713843049485,-500.0,0.00012592,2]
[323247573,1713843049494,-500.0,0.00012592,2]
[323247574,1713843049503,-1603.47982,0.00012592,2]
[323247575,1713843049512,-155.70381361,0.00012593,2]
[323247576,1713843049522,-270.78289805,0.00012593,2]
[323247577,1713843049532,-458.82160479,0.00012593,2]
[323247578,1713843049543,-236.87045803,0.00012593,2]
[323247579,1713843049552,-3782.26910206,0.00012593,2]
[323247580,1713843049563,-243.69194198,0.00012593,2]
[323247581,1713843049574,-500.0,0.00012593,2]
[323247582,1713843049583,-500.0,0.00012593,2]
[323247583,1713843049593,-500.0,0.00012593,2]
[323247584,1713843049602,-500.0,0.00012593,2]
[323247585,1713843049611,-500.0,0.00012593,2]
[323247586,1713843049620,-238.84424834,0.00012593,2]
[323247587,1713843049631,-501.04097273,0.00012593,2]
[323247588,1713843049641,-500.0,0.00012593,2]
[323247589,1713843049651,-503.39971758,0.00012593,2]
[323247590,1713843049661,-501.4126097,0.00012593,2]
[323247591,1713843049670,-501.31241371,0.00012593,2]
[323247592,1713843049680,-390.66067752,0.00012593,2]
[323247593,1713843049690,-500.0,0.00012593,2]
[323247594,1713843049700,-502.4784895,0.00012593,2]
[323247595,1713843049709,-501.40038321,0.00012593,2]
[323247596,1713843049718,-504.56436481,0.00012593,2]
[323247597,1713843049728,-504.0233042,0.00012593,2]
[323247598,1713843049738,-501.79894579,0.00012593,2]
[323247599,1713843049747,-502.54289783,0.00012593,2]
[323247600,1713843049757,-500.0,0.00012593,2]
[323247601,1713843049766,-500.0,0.00012593,2]
[323247602,1713843049776,-500.0,0.00012593,2]
[323247603,1713843049786,-502.43179379,0.00012593,2]
[323247604,1713843049796,-500.0,0.00012593,2]
[323247605,1713843049806,-555.46427893,0.00012593,2]
[323247606,1713843049818,-500.0,0.00012593,2]
[323247607,1713843049829,-500.0,0.00012593,2]
[323247608,1713843049839,-502.88395061,0.00012593,2]
[323247609,1713843049848,-526.08,0.00012593,2]
[323247610,1713843049859,-500.0,0.00012593,2]
[323247611,1713843049870,-494.62544569,0.00012593,2]
[323247612,1713843049879,-500.0,0.00012593,2]
[323247613,1713843049889,-500.0,0.00012593,2]
[323247614,1713843049900,-500.0,0.00012593,2]
[323247615,1713843049912,-500.0,0.00012593,2]
[323247616,1713843049921,-500.0,0.00012593,2]
[323247617,1713843049931,-500.0,0.00012593,2]
[323247618,1713843049940,-500.0,0.00012593,2]
[323247619,1713843049950,-500.0,0.00012593,2]
[323247620,1713843049959,-502.40157878,0.00012593,2]
[323247621,1713843049969,-500.0,0.00012593,2]
[323247622,1713843049980,-500.0,0.00012593,2]
[323247623,1713843049989,-500.0,0.00012593,2]
[323247624,1713843049998,-500.0,0.00012593,2]
[323247625,1713843050007,-500.0,0.00012593,2]
[323247626,1713843050016,-1247.87,0.00012593,2]
[323247627,1713843050026,-606.43625302,0.00012593,2]
[323247628,1713843050035,-522.45,0.00012593,2]
[323247629,1713843050044,-589.28976263,0.00012593,2]
[323247630,1713843050053,-553.24774575,0.00012593,2]
[323247631,1713843050063,-502.82274078,0.00012593,2]
[323247632,1713843050073,-500.0,0.00012593,2]
[323247633,1713843050082,-500.0,0.00012593,2]
[323247634,1713843050095,-500.59945548,0.00012593,2]
[323247635,1713843050105,-453.78827583,0.00012593,2]
[323247636,1713843050114,-501.83885752,0.00012593,2]
[323247637,1713843050124,-498.38431934,0.00012593,2]
[323247638,1713843050133,-502.42905782,0.00012593,2]
[323247639,1713843050143,-500.0,0.00012593,2]
[323247640,1713843050152,-502.33998194,0.00012593,2]
[323247641,1713843050161,-500.0,0.00012593,2]
[323247642,1713843050170,-502.14105074,0.00012593,2]
[323247643,1713843050179,-500.0,0.00012593,2]
[323247644,1713843050189,-500.31639869,0.00012593,2]
[323247645,1713843050199,-501.04578864,0.00012593,2]
[323247646,1713843050208,-503.85903551,0.00012593,2]
[323247647,1713843050218,-503.20807947,0.00012593,2]
[323247648,1713843050227,-500.0,0.00012593,2]
[323247649,1713843050238,-500.0,0.00012593,2]
[323247650,1713843050248,-767.95,0.00012593,2]
[323247651,1713843050257,-271.71076977,0.00012593,2]
[323247652,1713843050267,-500.0,0.00012593,2]
[323247653,1713843050276,-500.0,0.00012593,2]
[323247654,1713843050286,-500.0,0.00012593,2]
[323247655,1713843050295,-500.75644656,0.00012593,2]
[323247656,1713843050304,-531.49,0.00012593,2]
[323247657,1713843050314,-620.34,0.00012593,2]
[323247658,1713843050324,-500.0,0.00012593,2]
[323247659,1713843050333,-500.0,0.00012593,2]
[323247660,1713843050344,-500.0,0.00012593,2]
[323247661,1713843050354,-500.0,0.00012593,2]
[323247662,1713843050364,-658.93,0.00012593,2]
[323247663,1713843050374,-503.54557049,0.00012593,2]
[323247664,1713843050384,-583.12821254,0.00012593,2]
[323247665,1713843050395,-500.0,0.00012593,2]
[323247666,1713843050404,-500.0,0.00012593,2]
[323247667,1713843050414,-500.0,0.00012593,2]
[323247668,1713843050423,-500.0,0.00012593,2]
[323247669,1713843050434,-569.76461732,0.00012593,2]
[323247670,1713843050444,-502.55758476,0.00012593,2]
[323247671,1713843050454,-500.0,0.00012593,2]
[323247672,1713843050464,-500.0,0.00012593,2]
[323247673,1713843050474,-500.0,0.00012593,2]
[323247674,1713843050484,-588.36997359,0.00012593,2]
[323247675,1713843050494,-500.0,0.00012593,2]
[323247676,1713843050504,-504.54776523,0.00012593,2]
[323247677,1713843050514,-323.36531484,0.00012593,2]
[323247678,1713843050523,-500.0,0.00012593,2]
[323247679,1713843050533,-500.0,0.00012593,2]
[323247680,1713843050543,-535.82,0.00012593,2]
[323247681,1713843050553,-500.0,0.00012593,2]
[323247682,1713843050562,-223.37486752,0.00012593,2]
[323247683,1713843050572,-500.0,0.00012593,2]
[323247684,1713843050582,-500.61,0.00012593,2]
[323247685,1713843050592,-222.69154124,0.00012593,2]
[323247686,1713843050603,-504.78205411,0.00012593,2]
[323247687,1713843050613,-500.0,0.00012593,2]
[323247688,1713843050623,-506.93099251,0.00012593,2]
[323247689,1713843050633,-500.0,0.00012593,2]
[323247690,1713843050643,-497.45138392,0.00012593,2]
[323247691,1713843050654,-500.0,0.00012593,2]
[323247692,1713843050663,-501.22542502,0.00012593,2]
[323247693,1713843050672,-1003.18,0.00012593,2]
[323247694,1713843050682,-594.83617583,0.00012593,2]
[323247695,1713843050691,-518.06423665,0.00012593,2]
[323247696,1713843050700,-169.46280653,0.00012593,2]
[323247697,1713843050711,-500.0,0.00012593,2]
[323247698,1713843050720,-918.51,0.00012593,2]
[323247699,1713843050730,-501.28384299,0.00012593,2]
[323247700,1713843050740,-624.06,0.00012593,2]
[323247701,1713843050749,-500.0,0.00012593,2]
[323247702,1713843050759,-901.86,0.00012593,2]
[323247703,1713843050768,-503.15550049,0.00012593,2]
[323247704,1713843050777,-500.0,0.00012593,2]
[323247705,1713843050787,-500.0,0.00012593,2]
[323247706,1713843050796,-500.0,0.00012593,2]
[323247707,1713843050806,-500.0,0.00012593,2]
[323247708,1713843050817,-500.0,0.00012593,2]
[323247709,1713843050828,-517.09320525,0.00012593,2]
[323247710,1713843050837,-169.51747407,0.00012593,2]
[323247711,1713843050847,-506.95094018,0.00012593,2]
[323247712,1713843050856,-500.0,0.00012593,2]
[323247713,1713843050867,-500.0,0.00012593,2]
[323247714,1713843050876,-500.0,0.00012593,2]
[323247715,1713843050885,-348.50673697,0.00012593,2]
[323247716,1713843050896,-500.0,0.00012593,2]
[323247717,1713843050906,-529.91,0.00012593,2]
[323247718,1713843050915,-642.91166876,0.00012593,2]
[323247719,1713843050925,-500.0,0.00012593,2]
[323247720,1713843050935,-500.0,0.00012593,2]
[323247721,1713843050945,-317.73606165,0.00012593,2]
[323247722,1713843050954,-500.0,0.00012593,2]
[323247723,1713843050964,-500.0,0.00012593,2]
[323247724,1713843050974,-500.0,0.00012593,2]
[323247725,1713843050984,-500.0,0.00012593,2]
[323247726,1713843050994,-500.0,0.00012593,2]
[323247727,1713843051004,-500.0,0.00012593,2]
[323247728,1713843051013,-502.36858004,0.00012593,2]
[323247729,1713843051025,-500.0,0.00012593,2]
[323247730,1713843051034,-500.0,0.00012593,2]
[323247731,1713843051044,-500.0,0.00012593,2]
[323247732,1713843051053,-500.585221,0.00012593,2]
[323247733,1713843051062,-500.0,0.00012593,2]
[323247734,1713843051072,-512.35079942,0.00012593,2]
[323247735,1713843051081,-1102.75,0.00012593,2]
[323247736,1713843051090,-502.78434914,0.00012593,2]
[323247737,1713843051100,-500.0,0.00012593,2]
[323247738,1713843051110,-500.0,0.00012593,2]
[323247739,1713843051119,-500.0,0.00012593,2]